Workbook

Sheet 杜阮镇
A1: 2024年蓬江区杜阮镇中央耕地地力保护补贴发放明细表
A2: 序号 | B2: 姓名 | C2: 村委会 | D2: 耕地地力保护补贴
D3: 补贴面积 | E3: 补贴标准 | F3: 补贴金额
D4: （亩） | E4: （元/亩） | F4: (元)
A5: 1 | B5: 袁*明 | C5: 中和村 | D5: 0.85 | E5: 101.6 | F5: =D5*E5 -> 86.36
A6: 2 | B6: 袁*波 | C6: 中和村 | D6: 0.85 | E6: 101.6 | F6: =D6*E6 -> 86.36
A7: 3 | B7: 袁*荣 | C7: 中和村 | D7: 3.36 | E7: 101.6 | F7: 341.38
A8: 4 | B8: 袁*安 | C8: 中和村 | D8: 4.29 | E8: 101.6 | F8: 435.86
A9: 5 | B9: 袁*生 | C9: 中和村 | D9: 1.6 | E9: 101.6 | F9: 162.56
A10: 6 | B10: 袁*利 | C10: 中和村 | D10: 1.7 | E10: 101.6 | F10: 172.72
A11: 7 | B11: 袁*章 | C11: 中和村 | D11: 1.02 | E11: 101.6 | F11: 103.63
A12: 8 | B12: 袁*乐 | C12: 中和村 | D12: 0.51 | E12: 101.6 | F12: 51.82
A13: 9 | B13: 袁*裕 | C13: 中和村 | D13: 1.02 | E13: 101.6 | F13: 103.63
A14: 10 | B14: 袁*宁 | C14: 中和村 | D14: 4.37 | E14: 101.6 | F14: 443.99
A15: 11 | B15: 袁*远 | C15: 中和村 | D15: 2.72 | E15: 101.6 | F15: 276.35
A16: 12 | B16: 郭*妹 | C16: 中和村 | D16: 1.02 | E16: 101.6 | F16: 103.63
A17: 13 | B17: 黄*带 | C17: 中和村 | D17: 2.55 | E17: 101.6 | F17: 259.08
A18: 14 | B18: 袁*希 | C18: 中和村 | D18: 1.87 | E18: 101.6 | F18: 189.99
A19: 15 | B19: 卢*彩 | C19: 中和村 | D19: 1.02 | E19: 101.6 | F19: 103.63
A20: 16 | B20: 袁*泽 | C20: 中和村 | D20: 0.68 | E20: 101.6 | F20: 69.09
A21: 17 | B21: 袁*驹 | C21: 中和村 | D21: 47.7 | E21: 101.6 | F21: 4846.32
A22: 18 | B22: 袁*强 | C22: 中和村 | D22: 0.51 | E22: 101.6 | F22: 51.82
A23: 19 | B23: 袁*坚 | C23: 中和村 | D23: 1.8 | E23: 101.6 | F23: 182.88
A24: 20 | B24: 袁*辉 | C24: 中和村 | D24: 1.53 | E24: 101.6 | F24: 155.45
A25: 21 | B25: 石*更 | C25: 中和村 | D25: 1.18 | E25: 101.6 | F25: 119.89
A26: 22 | B26: 袁*荣 | C26: 中和村 | D26: 14 | E26: 101.6 | F26: 1422.40
A27: 23 | B27: 袁*安 | C27: 中和村 | D27: 1.7 | E27: 101.6 | F27: 172.72
A28: 24 | B28: 袁*玲 | C28: 中和村 | D28: 1.02 | E28: 101.6 | F28: 103.63
A29: 25 | B29: 袁*诗 | C29: 中和村 | D29: 0.5 | E29: 101.6 | F29: 50.80
A30: 26 | B30: 吴*胜 | C30: 中和村 | D30: 0.85 | E30: 101.6 | F30: 86.36
A31: 27 | B31: 袁*康 | C31: 中和村 | D31: 1.5 | E31: 101.6 | F31: 152.40
A32: 28 | B32: 袁*振 | C32: 中和村 | D32: 2 | E32: 101.6 | F32: 203.20
A33: 29 | B33: 温*培 | C33: 中和村 | D33: 2.7 | E33: 101.6 | F33: 274.32
A34: 30 | B34: 陈*安 | C34: 中和村 | D34: 1 | E34: 101.6 | F34: 101.60
A35: 31 | B35: 陈*友 | C35: 中和村 | D35: 1.5 | E35: 101.6 | F35: 152.40
A36: 32 | B36: 范*锋 | C36: 中和村 | D36: 3 | E36: 101.6 | F36: 304.80
A37: 33 | B37: 陈*强 | C37: 中和村 | D37: 2.4 | E37: 101.6 | F37: 243.84
A38: 34 | B38: 叶*辉 | C38: 中和村 | D38: 5 | E38: 101.6 | F38: 508.00
A39: 35 | B39: 叶*盛 | C39: 中和村 | D39: 1.3 | E39: 101.6 | F39: 132.08
A40: 36 | B40: 李*仔 | C40: 中和村 | D40: 1.8 | E40: 101.6 | F40: 182.88
A41: 37 | B41: 叶*雄 | C41: 中和村 | D41: 4.5 | E41: 101.6 | F41: 457.20
A42: 38 | B42: 李*年 | C42: 中和村 | D42: 1.5 | E42: 101.6 | F42: 152.40
A43: 39 | B43: 秦*弟 | C43: 中和村 | D43: 0.8 | E43: 101.6 | F43: 81.28
A44: 40 | B44: 何*学 | C44: 中和村 | D44: 1.54 | E44: 101.6 | F44: 156.46
A45: 41 | B45: 何*发 | C45: 中和村 | D45: 2.4 | E45: 101.6 | F45: 243.84
A46: 42 | B46: 李*伴 | C46: 中和村 | D46: 1.7 | E46: 101.6 | F46: 172.72
A47: 43 | B47: 何*柔 | C47: 中和村 | D47: 0.8 | E47: 101.6 | F47: 81.28
A48: 44 | B48: 李*彩 | C48: 中和村 | D48: 1.6 | E48: 101.6 | F48: 162.56
A49: 45 | B49: 林*盛 | C49: 中和村 | D49: 2.5 | E49: 101.6 | F49: 254.00
A50: 46 | B50: 叶*全 | C50: 中和村 | D50: 0.88 | E50: 101.6 | F50: 89.41
A51: 47 | B51: 叶*权 | C51: 中和村 | D51: 2.7 | E51: 101.6 | F51: 274.32
A52: 48 | B52: 何*潮 | C52: 中和村 | D52: 1.2 | E52: 101.6 | F52: 121.92
A53: 49 | B53: 叶*源 | C53: 中和村 | D53: 1.2 | E53: 101.6 | F53: 121.92
A54: 50 | B54: 叶*波 | C54: 中和村 | D54: 0.8 | E54: 101.6 | F54: 81.28
A55: 51 | B55: 何*林 | C55: 中和村 | D55: 3.6 | E55: 101.6 | F55: 365.76
A56: 52 | B56: 叶*伟 | C56: 中和村 | D56: 3.5 | E56: 101.6 | F56: 355.60
A57: 53 | B57: 谈*梅 | C57: 中和村 | D57: 4.5 | E57: 101.6 | F57: 457.20
A58: 54 | B58: 林*好 | C58: 中和村 | D58: 1.4 | E58: 101.6 | F58: 142.24
A59: 55 | B59: 叶*棠 | C59: 中和村 | D59: 1.1 | E59: 101.6 | F59: 111.76
A60: 56 | B60: 叶*超 | C60: 中和村 | D60: 1 | E60: 101.6 | F60: 101.60
A61: 57 | B61: 陈*生 | C61: 中和村 | D61: 0.44 | E61: 101.6 | F61: 44.70
A62: 58 | B62: 温*娇 | C62: 中和村 | D62: 0.22 | E62: 101.6 | F62: 22.35
A63: 59 | B63: 陈*有 | C63: 中和村 | D63: 0.22 | E63: 101.6 | F63: 22.35
A64: 60 | B64: 陈*通 | C64: 中和村 | D64: 0.44 | E64: 101.6 | F64: 44.70
A65: 61 | B65: 陈*友 | C65: 中和村 | D65: 0.44 | E65: 101.6 | F65: 44.70
A66: 62 | B66: 钟*胜 | C66: 中和村 | D66: 0.22 | E66: 101.6 | F66: 22.35
A67: 63 | B67: 陈*文 | C67: 中和村 | D67: 0.22 | E67: 101.6 | F67: 22.35
A68: 64 | B68: 钟*英 | C68: 中和村 | D68: 0.22 | E68: 101.6 | F68: 22.35
A69: 65 | B69: 卢*英 | C69: 中和村 | D69: 0.22 | E69: 101.6 | F69: 22.35
A70: 66 | B70: 钟*德 | C70: 中和村 | D70: 0.22 | E70: 101.6 | F70: =D70*E70 -> 22.35
A71: 67 | B71: 袁*妹 | C71: 中和村 | D71: 0.22 | E71: 101.6 | F71: 22.35
A72: 68 | B72: 陈*华 | C72: 中和村 | D72: 0.44 | E72: 101.6 | F72: 44.70
A73: 69 | B73: 赖*娇 | C73: 中和村 | D73: 0.66 | E73: 101.6 | F73: 67.06
A74: 70 | B74: 钟*友 | C74: 中和村 | D74: 0.22 | E74: 101.6 | F74: 22.35
A75: 71 | B75: 钟*就 | C75: 中和村 | D75: 0.22 | E75: 101.6 | F75: 22.35
A76: 72 | B76: 陈*根 | C76: 中和村 | D76: 0.22 | E76: 101.6 | F76: 22.35
A77: 73 | B77: 陈*威 | C77: 中和村 | D77: 0.22 | E77: 101.6 | F77: 22.35
A78: 74 | B78: 陈*长 | C78: 中和村 | D78: 0.22 | E78: 101.6 | F78: 22.35
A79: 75 | B79: 文*胜 | C79: 龙溪村 | D79: 0.6 | E79: 101.6 | F79: 60.96
A80: 76 | B80: 杨*英 | C80: 龙溪村 | D80: 0.1 | E80: 101.6 | F80: 10.16
A81: 77 | B81: 文*如 | C81: 龙溪村 | D81: 0.4 | E81: 101.6 | F81: 40.64
A82: 78 | B82: 文*湾 | C82: 龙溪村 | D82: 0.5 | E82: 101.6 | F82: 50.80
A83: 79 | B83: 文*强 | C83: 龙溪村 | D83: 0.4 | E83: 101.6 | F83: 40.64
A84: 80 | B84: 文*利 | C84: 龙溪村 | D84: 0.6 | E84: 101.6 | F84: 60.96
A85: 81 | B85: 文*峰 | C85: 龙溪村 | D85: 0.5 | E85: 101.6 | F85: 50.80
A86: 82 | B86: 黄*连 | C86: 龙溪村 | D86: 0.25 | E86: 101.6 | F86: 25.40
A87: 83 | B87: 彭*芳 | C87: 龙溪村 | D87: 0.45 | E87: 101.6 | F87: 45.72
A88: 84 | B88: 谭*明 | C88: 龙溪村 | D88: 0.25 | E88: 101.6 | F88: 25.40
A89: 85 | B89: 谭*民 | C89: 龙溪村 | D89: 0.5 | E89: 101.6 | F89: 50.80
A90: 86 | B90: 文*清 | C90: 龙溪村 | D90: 0.9 | E90: 101.6 | F90: 91.44
A91: 87 | B91: 文*良 | C91: 龙溪村 | D91: 0.4 | E91: 101.6 | F91: 40.64
A92: 88 | B92: 文*材 | C92: 龙溪村 | D92: 1 | E92: 101.6 | F92: 101.60
A93: 89 | B93: 文*太 | C93: 龙溪村 | D93: 0.6 | E93: 101.6 | F93: 60.96
A94: 90 | B94: 文*财 | C94: 龙溪村 | D94: 0.3 | E94: 101.6 | F94: 30.48
A95: 91 | B95: 文*生 | C95: 龙溪村 | D95: 0.5 | E95: 101.6 | F95: 50.80
A96: 92 | B96: 文*林 | C96: 龙溪村 | D96: 2.35 | E96: 101.6 | F96: 238.76
A97: 93 | B97: 文*江 | C97: 龙溪村 | D97: 0.75 | E97: 101.6 | F97: 76.20
A98: 94 | B98: 文*洪 | C98: 龙溪村 | D98: 0.1 | E98: 101.6 | F98: 10.16
A99: 95 | B99: 文*享 | C99: 龙溪村 | D99: 0.25 | E99: 101.6 | F99: 25.40
A100: 96 | B100: 李*球 | C100: 龙溪村 | D100: 0.15 | E100: 101.6 | F100: 15.24
A101: 97 | B101: 文*娥 | C101: 龙溪村 | D101: 0.25 | E101: 101.6 | F101: 25.40
A102: 98 | B102: 文*棠 | C102: 龙溪村 | D102: 0.2 | E102: 101.6 | F102: 20.32
A103: 99 | B103: 文*乾 | C103: 龙溪村 | D103: 0.25 | E103: 101.6 | F103: 25.40
A104: 100 | B104: 文*权 | C104: 龙溪村 | D104: 0.2 | E104: 101.6 | F104: 20.32
A105: 101 | B105: 冯*梅 | C105: 龙溪村 | D105: 0.35 | E105: 101.6 | F105: 35.56
A106: 102 | B106: 谭*玲 | C106: 龙溪村 | D106: 0.15 | E106: 101.6 | F106: 15.24
A107: 103 | B107: 文*宣 | C107: 龙溪村 | D107: 0.05 | E107: 101.6 | F107: 5.08
A108: 104 | B108: 文*全 | C108: 龙溪村 | D108: 0.2 | E108: 101.6 | F108: 20.32
A109: 105 | B109: 文*源 | C109: 龙溪村 | D109: 0.3 | E109: 101.6 | F109: 30.48
A110: 106 | B110: 文*安 | C110: 龙溪村 | D110: 0.2 | E110: 101.6 | F110: 20.32
A111: 107 | B111: 文*富 | C111: 龙溪村 | D111: 0.3 | E111: 101.6 | F111: 30.48
A112: 108 | B112: 文*柏 | C112: 龙溪村 | D112: 0.5 | E112: 101.6 | F112: 50.80
A113: 109 | B113: 文*锐 | C113: 龙溪村 | D113: 0.42 | E113: 101.6 | F113: 42.67
A114: 110 | B114: 文*明 | C114: 龙溪村 | D114: 0.22 | E114: 101.6 | F114: 22.35
A115: 111 | B115: 文*庭 | C115: 龙溪村 | D115: 0.4 | E115: 101.6 | F115: 40.64
A116: 112 | B116: 文*柱 | C116: 龙溪村 | D116: 5 | E116: 101.6 | F116: 508.00
A117: 113 | B117: 文*华 | C117: 龙溪村 | D117: 0.66 | E117: 101.6 | F117: 67.06
A118: 114 | B118: 文*垣 | C118: 龙溪村 | D118: 0.35 | E118: 101.6 | F118: 35.56
A119: 115 | B119: 文*旺 | C119: 龙溪村 | D119: 0.4 | E119: 101.6 | F119: 40.64
A120: 116 | B120: 文*江 | C120: 龙溪村 | D120: 0.1 | E120: 101.6 | F120: 10.16
A121: 117 | B121: 王*芬 | C121: 龙溪村 | D121: 0.4 | E121: 101.6 | F121: 40.64
A122: 118 | B122: 文*麟 | C122: 龙溪村 | D122: 0.5 | E122: 101.6 | F122: 50.80
A123: 119 | B123: 谭*群 | C123: 龙溪村 | D123: 0.6 | E123: 101.6 | F123: 60.96
A124: 120 | B124: 文*兴 | C124: 龙溪村 | D124: 0.1 | E124: 101.6 | F124: 10.16
A125: 121 | B125: 文*怀 | C125: 龙溪村 | D125: 0.1 | E125: 101.6 | F125: 10.16
A126: 122 | B126: 文*珍 | C126: 龙溪村 | D126: 0.3 | E126: 101.6 | F126: 30.48
A127: 123 | B127: 谭*好 | C127: 龙溪村 | D127: 0.2 | E127: 101.6 | F127: 20.32
A128: 124 | B128: 黄*珠 | C128: 龙溪村 | D128: 0.3 | E128: 101.6 | F128: 30.48
A129: 125 | B129: 文*勤 | C129: 龙溪村 | D129: 0.25 | E129: 101.6 | F129: 25.40
A130: 126 | B130: 文*玲 | C130: 龙溪村 | D130: 0.2 | E130: 101.6 | F130: 20.32
A131: 127 | B131: 文*楚 | C131: 龙溪村 | D131: 0.5 | E131: 101.6 | F131: 50.80
A132: 128 | B132: 文*强 | C132: 龙溪村 | D132: 0.15 | E132: 101.6 | F132: 15.24
A133: 129 | B133: 文*连 | C133: 龙溪村 | D133: 0.1 | E133: 101.6 | F133: 10.16
A134: 130 | B134: 文*权 | C134: 龙溪村 | D134: 0.3 | E134: 101.6 | F134: =D134*E134 -> 30.48
A135: 131 | B135: 文*康 | C135: 龙溪村 | D135: 0.5 | E135: 101.6 | F135: 50.80
A136: 132 | B136: 文*德 | C136: 龙溪村 | D136: 0.6 | E136: 101.6 | F136: 60.96
A137: 133 | B137: 文*广 | C137: 龙溪村 | D137: 0.25 | E137: 101.6 | F137: 25.40
A138: 134 | B138: 文*峰 | C138: 龙溪村 | D138: 0.2 | E138: 101.6 | F138: 20.32
A139: 135 | B139: 文*尧 | C139: 龙溪村 | D139: 0.2 | E139: 101.6 | F139: 20.32
A140: 136 | B140: 谭*群 | C140: 龙溪村 | D140: 0.2 | E140: 101.6 | F140: 20.32
A141: 137 | B141: 文*春 | C141: 龙溪村 | D141: 0.2 | E141: 101.6 | F141: 20.32
A142: 138 | B142: 文*仁 | C142: 龙溪村 | D142: 0.2 | E142: 101.6 | F142: 20.32
A143: 139 | B143: 钟*英 | C143: 龙溪村 | D143: 0.4 | E143: 101.6 | F143: 40.64
A144: 140 | B144: 袁*霞 | C144: 龙溪村 | D144: 0.25 | E144: 101.6 | F144: 25.40
A145: 141 | B145: 文*均 | C145: 龙溪村 | D145: 0.15 | E145: 101.6 | F145: 15.24
A146: 142 | B146: 黄*连 | C146: 龙溪村 | D146: 0.5 | E146: 101.6 | F146: 50.80
A147: 143 | B147: 文*基 | C147: 龙溪村 | D147: 0.3 | E147: 101.6 | F147: 30.48
A148: 144 | B148: 文*广 | C148: 龙溪村 | D148: 16.3 | E148: 101.6 | F148: 1656.08
A149: 145 | B149: 文*坚 | C149: 龙溪村 | D149: 0.8 | E149: 101.6 | F149: 81.28
A150: 146 | B150: 文*才 | C150: 龙溪村 | D150: 0.35 | E150: 101.6 | F150: 35.56
A151: 147 | B151: 文*经 | C151: 龙溪村 | D151: 0.2 | E151: 101.6 | F151: 20.32
A152: 148 | B152: 文*胜 | C152: 龙溪村 | D152: 0.2 | E152: 101.6 | F152: 20.32
A153: 149 | B153: 文*灵 | C153: 龙溪村 | D153: 0.3 | E153: 101.6 | F153: 30.48
A154: 150 | B154: 文*海 | C154: 龙溪村 | D154: 0.5 | E154: 101.6 | F154: 50.80
A155: 151 | B155: 文*胜 | C155: 龙溪村 | D155: 0.5 | E155: 101.6 | F155: 50.80
A156: 152 | B156: 文*顺 | C156: 龙溪村 | D156: 0.3 | E156: 101.6 | F156: 30.48
A157: 153 | B157: 文*位 | C157: 龙溪村 | D157: 0.52 | E157: 101.6 | F157: 52.83
A158: 154 | B158: 文*玲 | C158: 龙溪村 | D158: 0.4 | E158: 101.6 | F158: 40.64
A159: 155 | B159: 文*生 | C159: 龙溪村 | D159: 0.6 | E159: 101.6 | F159: 60.96
A160: 156 | B160: 文*元 | C160: 龙溪村 | D160: 0.5 | E160: 101.6 | F160: 50.80
A161: 157 | B161: 文*纯 | C161: 龙溪村 | D161: 0.4 | E161: 101.6 | F161: 40.64
A162: 158 | B162: 谭*焕 | C162: 龙溪村 | D162: 0.2 | E162: 101.6 | F162: 20.32
A163: 159 | B163: 余*兰 | C163: 龙溪村 | D163: 0.7 | E163: 101.6 | F163: 71.12
A164: 160 | B164: 文*壮 | C164: 龙溪村 | D164: 0.6 | E164: 101.6 | F164: 60.96
A165: 161 | B165: 文*九 | C165: 龙溪村 | D165: 0.5 | E165: 101.6 | F165: 50.80
A166: 162 | B166: 文*能 | C166: 龙溪村 | D166: 0.3 | E166: 101.6 | F166: 30.48
A167: 163 | B167: 谭*凤 | C167: 龙溪村 | D167: 0.8 | E167: 101.6 | F167: 81.28
A168: 164 | B168: 阮*要 | C168: 龙溪村 | D168: 0.9 | E168: 101.6 | F168: 91.44
A169: 165 | B169: 文*权 | C169: 龙溪村 | D169: 0.2 | E169: 101.6 | F169: 20.32
A170: 166 | B170: 文*扬 | C170: 龙溪村 | D170: 0.4 | E170: 101.6 | F170: 40.64
A171: 167 | B171: 文*燊 | C171: 龙溪村 | D171: 0.2 | E171: 101.6 | F171: 20.32
A172: 168 | B172: 文*亮 | C172: 龙溪村 | D172: 0.5 | E172: 101.6 | F172: 50.80
A173: 169 | B173: 文*瑞 | C173: 龙溪村 | D173: 0.3 | E173: 101.6 | F173: 30.48
A174: 170 | B174: 卢*喜 | C174: 龙溪村 | D174: 0.1 | E174: 101.6 | F174: 10.16
A175: 171 | B175: 文*见 | C175: 龙溪村 | D175: 0.5 | E175: 101.6 | F175: 50.80
A176: 172 | B176: 陈*荷 | C176: 龙溪村 | D176: 0.2 | E176: 101.6 | F176: 20.32
A177: 173 | B177: 文*均 | C177: 龙溪村 | D177: 0.6 | E177: 101.6 | F177: 60.96
A178: 174 | B178: 文*山 | C178: 龙溪村 | D178: 0.3 | E178: 101.6 | F178: 30.48
A179: 175 | B179: 文*润 | C179: 龙溪村 | D179: 0.5 | E179: 101.6 | F179: 50.80
A180: 176 | B180: 余*娟 | C180: 龙溪村 | D180: 1.4 | E180: 101.6 | F180: 142.24
A181: 177 | B181: 文*城 | C181: 龙溪村 | D181: 0.4 | E181: 101.6 | F181: 40.64
A182: 178 | B182: 文*锦 | C182: 龙溪村 | D182: 0.44 | E182: 101.6 | F182: 44.70
A183: 179 | B183: 黄*霞 | C183: 龙溪村 | D183: 0.3 | E183: 101.6 | F183: 30.48
A184: 180 | B184: 文*铭 | C184: 龙溪村 | D184: 0.2 | E184: 101.6 | F184: 20.32
A185: 181 | B185: 文*胜 | C185: 龙溪村 | D185: 1.1 | E185: 101.6 | F185: 111.76
A186: 182 | B186: 文*利 | C186: 龙溪村 | D186: 0.9 | E186: 101.6 | F186: 91.44
A187: 183 | B187: 谭*堂 | C187: 龙溪村 | D187: 0.8 | E187: 101.6 | F187: 81.28
A188: 184 | B188: 文*尧 | C188: 龙溪村 | D188: 2 | E188: 101.6 | F188: 203.20
A189: 185 | B189: 文*平 | C189: 龙溪村 | D189: 0.5 | E189: 101.6 | F189: 50.80
A190: 186 | B190: 谭*芳 | C190: 龙溪村 | D190: 0.9 | E190: 101.6 | F190: 91.44
A191: 187 | B191: 余*芳 | C191: 龙溪村 | D191: 0.1 | E191: 101.6 | F191: 10.16
A192: 188 | B192: 文*玲 | C192: 龙溪村 | D192: 0.2 | E192: 101.6 | F192: 20.32
A193: 189 | B193: 文*根 | C193: 龙溪村 | D193: 0.4 | E193: 101.6 | F193: 40.64
A194: 190 | B194: 文*华 | C194: 龙溪村 | D194: 0.6 | E194: 101.6 | F194: 60.96
A195: 191 | B195: 文*慧 | C195: 龙溪村 | D195: 0.5 | E195: 101.6 | F195: 50.80
A196: 192 | B196: 李*梅 | C196: 龙溪村 | D196: 1.1 | E196: 101.6 | F196: 111.76
A197: 193 | B197: 文*荣 | C197: 龙溪村 | D197: 0.7 | E197: 101.6 | F197: 71.12
A198: 194 | B198: 文*健 | C198: 龙溪村 | D198: 0.4 | E198: 101.6 | F198: =D198*E198 -> 40.64
A199: 195 | B199: 文*灶 | C199: 龙溪村 | D199: 0.1 | E199: 101.6 | F199: 10.16
A200: 196 | B200: 冼*娟 | C200: 龙溪村 | D200: 0.5 | E200: 101.6 | F200: 50.80
... 4159 more rows

Sheet 棠下镇
A1: 2024年蓬江区棠下镇中央耕地地力保护补贴公示表
A2: 序号 | B2: 姓名 | C2: 村委会 | D2: 耕地地力保护补贴
D3: 补贴面积 | E3: 补贴标准 | F3: 补贴金额
D4: （亩） | E4: （元/亩） | F4: (元)
A5: 1 | B5: 甘*健 | C5: 中心村 | D5: 1 | E5: 101.6 | F5: =D5*E5 -> 101.6
A6: 2 | B6: 甘*昌 | C6: 中心村 | D6: 3 | E6: 101.6 | F6: 304.8
A7: 3 | B7: 甘*强 | C7: 中心村 | D7: 3 | E7: 101.6 | F7: 304.8
A8: 4 | B8: 周*转 | C8: 中心村 | D8: 3 | E8: 101.6 | F8: 304.8
A9: 5 | B9: 黄*平 | C9: 中心村 | D9: 1.5 | E9: 101.6 | F9: 152.4
A10: 6 | B10: 甘*锐 | C10: 中心村 | D10: 3 | E10: 101.6 | F10: 304.8
A11: 7 | B11: 廖*红 | C11: 中心村 | D11: 1 | E11: 101.6 | F11: 101.6
A12: 8 | B12: 甘*耀 | C12: 中心村 | D12: 1.5 | E12: 101.6 | F12: 152.4
A13: 9 | B13: 甘*民 | C13: 中心村 | D13: 1 | E13: 101.6 | F13: 101.6
A14: 10 | B14: 甘*发 | C14: 中心村 | D14: 0.6 | E14: 101.6 | F14: 60.96
A15: 11 | B15: 梁*玲 | C15: 中心村 | D15: 3 | E15: 101.6 | F15: 304.8
A16: 12 | B16: 甘*祺 | C16: 中心村 | D16: 1 | E16: 101.6 | F16: 101.6
A17: 13 | B17: 罗*珍 | C17: 中心村 | D17: 3 | E17: 101.6 | F17: 304.8
A18: 14 | B18: 伍*棠 | C18: 中心村 | D18: 0.5 | E18: 101.6 | F18: 50.8
A19: 15 | B19: 郭*强 | C19: 中心村 | D19: 2 | E19: 101.6 | F19: 203.2
A20: 16 | B20: 胡*华 | C20: 中心村 | D20: 2 | E20: 101.6 | F20: 203.2
A21: 17 | B21: 胡*才 | C21: 中心村 | D21: 2 | E21: 101.6 | F21: 203.2
A22: 18 | B22: 胡*锦 | C22: 中心村 | D22: 2 | E22: 101.6 | F22: 203.2
A23: 19 | B23: 胡*全 | C23: 中心村 | D23: 2 | E23: 101.6 | F23: 203.2
A24: 20 | B24: 胡*明 | C24: 中心村 | D24: 15 | E24: 101.6 | F24: 1524
A25: 21 | B25: 胡*文 | C25: 中心村 | D25: 7 | E25: 101.6 | F25: 711.2
A26: 22 | B26: 胡*强 | C26: 中心村 | D26: 33 | E26: 101.6 | F26: 3352.8
A27: 23 | B27: 林*光 | C27: 中心村 | D27: 1 | E27: 101.6 | F27: 101.6
A28: 24 | B28: 谭*池 | C28: 中心村 | D28: 2.8 | E28: 101.6 | F28: 284.48
A29: 25 | B29: 林*立 | C29: 中心村 | D29: 0.5 | E29: 101.6 | F29: 50.8
A30: 26 | B30: 谭*文 | C30: 中心村 | D30: 4 | E30: 101.6 | F30: 406.4
A31: 27 | B31: 谭*利 | C31: 中心村 | D31: 6.3 | E31: 101.6 | F31: 640.08
A32: 28 | B32: 张*进 | C32: 中心村 | D32: 4.1 | E32: 101.6 | F32: 416.56
A33: 29 | B33: 林*业 | C33: 中心村 | D33: 1.2 | E33: 101.6 | F33: 121.92
A34: 30 | B34: 谭*镇 | C34: 中心村 | D34: 4.6 | E34: 101.6 | F34: 467.36
A35: 31 | B35: 叶*英 | C35: 中心村 | D35: 1.7 | E35: 101.6 | F35: 172.72
A36: 32 | B36: 郭*恒 | C36: 中心村 | D36: 4 | E36: 101.6 | F36: 406.4
A37: 33 | B37: 梁*杰 | C37: 中心村 | D37: 1.2 | E37: 101.6 | F37: 121.92
A38: 34 | B38: 谭*昆 | C38: 中心村 | D38: 0.9 | E38: 101.6 | F38: 91.44
A39: 35 | B39: 林*勤 | C39: 中心村 | D39: 4.5 | E39: 101.6 | F39: 457.2
A40: 36 | B40: 潘*开 | C40: 中心村 | D40: 3.5 | E40: 101.6 | F40: 355.6
A41: 37 | B41: 谭*容 | C41: 中心村 | D41: 1 | E41: 101.6 | F41: 101.6
A42: 38 | B42: 李*娥 | C42: 中心村 | D42: 1.25 | E42: 101.6 | F42: 127
A43: 39 | B43: 黄*莲 | C43: 中心村 | D43: 1.5 | E43: 101.6 | F43: 152.4
A44: 40 | B44: 廖*清 | C44: 中心村 | D44: 0.5 | E44: 101.6 | F44: 50.8
A45: 41 | B45: 林*健 | C45: 中心村 | D45: 1.75 | E45: 101.6 | F45: 177.8
A46: 42 | B46: 林*学 | C46: 中心村 | D46: 0.5 | E46: 101.6 | F46: 50.8
A47: 43 | B47: 黄*强 | C47: 中心村 | D47: 2.5 | E47: 101.6 | F47: 254
A48: 44 | B48: 黄*璇 | C48: 中心村 | D48: 2 | E48: 101.6 | F48: 203.2
A49: 45 | B49: 黄*池 | C49: 中心村 | D49: 2 | E49: 101.6 | F49: 203.2
A50: 46 | B50: 黄*华 | C50: 中心村 | D50: 2.5 | E50: 101.6 | F50: 254
A51: 47 | B51: 黄*崇 | C51: 中心村 | D51: 2 | E51: 101.6 | F51: 203.2
A52: 48 | B52: 黄*镇 | C52: 中心村 | D52: 2.5 | E52: 101.6 | F52: 254
A53: 49 | B53: 黄*狮 | C53: 中心村 | D53: 2 | E53: 101.6 | F53: 203.2
A54: 50 | B54: 黄*新 | C54: 中心村 | D54: 1.5 | E54: 101.6 | F54: 152.4
A55: 51 | B55: 黄*清 | C55: 中心村 | D55: 3 | E55: 101.6 | F55: 304.8
A56: 52 | B56: 黄*光 | C56: 中心村 | D56: 2 | E56: 101.6 | F56: 203.2
A57: 53 | B57: 黄*明 | C57: 中心村 | D57: 3 | E57: 101.6 | F57: 304.8
A58: 54 | B58: 胡*莲 | C58: 中心村 | D58: 2.5 | E58: 101.6 | F58: 254
A59: 55 | B59: 黄*玲 | C59: 中心村 | D59: 2 | E59: 101.6 | F59: 203.2
A60: 56 | B60: 黄*华 | C60: 中心村 | D60: 5 | E60: 101.6 | F60: 508
A61: 57 | B61: 黄*金 | C61: 中心村 | D61: 1.5 | E61: 101.6 | F61: 152.4
A62: 58 | B62: 朱*玲 | C62: 中心村 | D62: 1.5 | E62: 101.6 | F62: 152.4
A63: 59 | B63: 黄*洪 | C63: 中心村 | D63: 2.5 | E63: 101.6 | F63: 254
A64: 60 | B64: 黄*恒 | C64: 中心村 | D64: 2.5 | E64: 101.6 | F64: 254
A65: 61 | B65: 黄*能 | C65: 中心村 | D65: 2 | E65: 101.6 | F65: 203.2
A66: 62 | B66: 黄*强 | C66: 中心村 | D66: 4.5 | E66: 101.6 | F66: 457.2
A67: 63 | B67: 黄*均 | C67: 中心村 | D67: 2 | E67: 101.6 | F67: 203.2
A68: 64 | B68: 黄*红 | C68: 中心村 | D68: 1.5 | E68: 101.6 | F68: 152.4
A69: 65 | B69: 黄*成 | C69: 中心村 | D69: 2.5 | E69: 101.6 | F69: =D69*E69 -> 254
A70: 66 | B70: 黄*荣 | C70: 中心村 | D70: 2 | E70: 101.6 | F70: 203.2
A71: 67 | B71: 林*培 | C71: 中心村 | D71: 9 | E71: 101.6 | F71: 914.4
A72: 68 | B72: 林*民 | C72: 中心村 | D72: 9 | E72: 101.6 | F72: 914.4
A73: 69 | B73: 叶*娣 | C73: 中心村 | D73: 14.2 | E73: 101.6 | F73: 1442.72
A74: 70 | B74: 林*广 | C74: 中心村 | D74: 1.8 | E74: 101.6 | F74: 182.88
A75: 71 | B75: 林*杰 | C75: 中心村 | D75: 0.8 | E75: 101.6 | F75: 81.28
A76: 72 | B76: 冯*维 | C76: 中心村 | D76: 2.6 | E76: 101.6 | F76: 264.16
A77: 73 | B77: 梁*养 | C77: 中心村 | D77: 0.4 | E77: 101.6 | F77: 40.64
A78: 74 | B78: 林*就 | C78: 中心村 | D78: 1.7 | E78: 101.6 | F78: 172.72
A79: 75 | B79: 薛*明 | C79: 中心村 | D79: 0.6 | E79: 101.6 | F79: 60.96
A80: 76 | B80: 林*明 | C80: 中心村 | D80: 0.4 | E80: 101.6 | F80: 40.64
A81: 77 | B81: 林*泉 | C81: 中心村 | D81: 2.8 | E81: 101.6 | F81: 284.48
A82: 78 | B82: 林*明 | C82: 中心村 | D82: 3.3 | E82: 101.6 | F82: 335.28
A83: 79 | B83: 肖*美 | C83: 中心村 | D83: 0.7 | E83: 101.6 | F83: 71.12
A84: 80 | B84: 林*壮 | C84: 中心村 | D84: 0.5 | E84: 101.6 | F84: 50.8
A85: 81 | B85: 林*广 | C85: 中心村 | D85: 0.7 | E85: 101.6 | F85: 71.12
A86: 82 | B86: 林*洪 | C86: 中心村 | D86: 1.1 | E86: 101.6 | F86: 111.76
A87: 83 | B87: 林*聪 | C87: 中心村 | D87: 0.4 | E87: 101.6 | F87: 40.64
A88: 84 | B88: 李*仙 | C88: 中心村 | D88: 0.4 | E88: 101.6 | F88: 40.64
A89: 85 | B89: 林*焕 | C89: 中心村 | D89: 0.3 | E89: 101.6 | F89: 30.48
A90: 86 | B90: 林*学 | C90: 中心村 | D90: 1.2 | E90: 101.6 | F90: 121.92
A91: 87 | B91: 林*俭 | C91: 中心村 | D91: 0.5 | E91: 101.6 | F91: 50.8
A92: 88 | B92: 周*有 | C92: 中心村 | D92: 0.4 | E92: 101.6 | F92: 40.64
A93: 89 | B93: 林*升 | C93: 中心村 | D93: 0.5 | E93: 101.6 | F93: 50.8
A94: 90 | B94: 林*结 | C94: 中心村 | D94: 0.6 | E94: 101.6 | F94: 60.96
A95: 91 | B95: 林*华 | C95: 中心村 | D95: 0.4 | E95: 101.6 | F95: 40.64
A96: 92 | B96: 林*华 | C96: 中心村 | D96: 0.4 | E96: 101.6 | F96: 40.64
A97: 93 | B97: 林*田 | C97: 中心村 | D97: 0.6 | E97: 101.6 | F97: 60.96
A98: 94 | B98: 张*定 | C98: 中心村 | D98: 0.4 | E98: 101.6 | F98: 40.64
A99: 95 | B99: 林*彤 | C99: 中心村 | D99: 0.2 | E99: 101.6 | F99: 20.32
A100: 96 | B100: 林*棠 | C100: 中心村 | D100: 0.6 | E100: 101.6 | F100: 60.96
A101: 97 | B101: 宋*芳 | C101: 中心村 | D101: 0.6 | E101: 101.6 | F101: 60.96
A102: 98 | B102: 黄*飞 | C102: 中心村 | D102: 7 | E102: 101.6 | F102: 711.2
A103: 99 | B103: 林*伟 | C103: 中心村 | D103: 0.6 | E103: 101.6 | F103: 60.96
A104: 100 | B104: 林*俊 | C104: 中心村 | D104: 0.7 | E104: 101.6 | F104: 71.12
A105: 101 | B105: 梁*利 | C105: 中心村 | D105: 0.2 | E105: 101.6 | F105: 20.32
A106: 102 | B106: 李*胜 | C106: 中心村 | D106: 13.2 | E106: 101.6 | F106: 1341.12
A107: 103 | B107: 黄*泰 | C107: 中心村 | D107: 3.2 | E107: 101.6 | F107: 325.12
A108: 104 | B108: 黄*风 | C108: 中心村 | D108: 1.6 | E108: 101.6 | F108: 162.56
A109: 105 | B109: 黄*荣 | C109: 中心村 | D109: 3.4 | E109: 101.6 | F109: 345.44
A110: 106 | B110: 黄*康 | C110: 中心村 | D110: 2.4 | E110: 101.6 | F110: 243.84
A111: 107 | B111: 黄*华 | C111: 中心村 | D111: 1.6 | E111: 101.6 | F111: 162.56
A112: 108 | B112: 黄*江 | C112: 中心村 | D112: 2 | E112: 101.6 | F112: 203.2
A113: 109 | B113: 冯*有 | C113: 中心村 | D113: 2 | E113: 101.6 | F113: 203.2
A114: 110 | B114: 梁*明 | C114: 中心村 | D114: 1.7 | E114: 101.6 | F114: 172.72
A115: 111 | B115: 沅*仪 | C115: 中心村 | D115: 3.5 | E115: 101.6 | F115: 355.6
A116: 112 | B116: 黄*权 | C116: 中心村 | D116: 1.2 | E116: 101.6 | F116: 121.92
A117: 113 | B117: 黄*棋 | C117: 中心村 | D117: 3.2 | E117: 101.6 | F117: 325.12
A118: 114 | B118: 黄*英 | C118: 中心村 | D118: 2.4 | E118: 101.6 | F118: 243.84
A119: 115 | B119: 黄*瑜 | C119: 中心村 | D119: 0.4 | E119: 101.6 | F119: 40.64
A120: 116 | B120: 黄*恒 | C120: 中心村 | D120: 1.7 | E120: 101.6 | F120: 172.72
A121: 117 | B121: 黄*汉 | C121: 中心村 | D121: 2.4 | E121: 101.6 | F121: 243.84
A122: 118 | B122: 周*爱 | C122: 中心村 | D122: 3.6 | E122: 101.6 | F122: 365.76
A123: 119 | B123: 黄*泉 | C123: 中心村 | D123: 2 | E123: 101.6 | F123: 203.2
A124: 120 | B124: 黄*全 | C124: 中心村 | D124: 2.2 | E124: 101.6 | F124: 223.52
A125: 121 | B125: 黄*森 | C125: 中心村 | D125: 2.5 | E125: 101.6 | F125: 254
A126: 122 | B126: 黄*泉 | C126: 中心村 | D126: 2.6 | E126: 101.6 | F126: 264.16
A127: 123 | B127: 黄*钊 | C127: 中心村 | D127: 3.3 | E127: 101.6 | F127: 335.28
A128: 124 | B128: 黄*宁 | C128: 中心村 | D128: 1.7 | E128: 101.6 | F128: 172.72
A129: 125 | B129: 黄*敬 | C129: 中心村 | D129: 1.7 | E129: 101.6 | F129: 172.72
A130: 126 | B130: 黄*明 | C130: 中心村 | D130: 1.3 | E130: 101.6 | F130: 132.08
A131: 127 | B131: 黄*安 | C131: 中心村 | D131: 2.8 | E131: 101.6 | F131: 284.48
A132: 128 | B132: 黄*亮 | C132: 中心村 | D132: 1.7 | E132: 101.6 | F132: 172.72
A133: 129 | B133: 黄*明 | C133: 中心村 | D133: 1.7 | E133: 101.6 | F133: =D133*E133 -> 172.72
A134: 130 | B134: 黄*贞 | C134: 中心村 | D134: 1.3 | E134: 101.6 | F134: 132.08
A135: 131 | B135: 黄*灿 | C135: 中心村 | D135: 6.8 | E135: 101.6 | F135: 690.88
A136: 132 | B136: 黄*生 | C136: 中心村 | D136: 1 | E136: 101.6 | F136: 101.6
A137: 133 | B137: 梁*琼 | C137: 中心村 | D137: 1.5 | E137: 101.6 | F137: 152.4
A138: 134 | B138: 黄*业 | C138: 中心村 | D138: 10 | E138: 101.6 | F138: 1016
A139: 135 | B139: 黄*均 | C139: 中心村 | D139: 6.2 | E139: 101.6 | F139: 629.92
A140: 136 | B140: 黄*妹 | C140: 中心村 | D140: 1.8 | E140: 101.6 | F140: 182.88
A141: 137 | B141: 胡*群 | C141: 中心村 | D141: 3.5 | E141: 101.6 | F141: 355.6
A142: 138 | B142: 黄*信 | C142: 中心村 | D142: 4 | E142: 101.6 | F142: 406.4
A143: 139 | B143: 黄*志 | C143: 中心村 | D143: 1.2 | E143: 101.6 | F143: 121.92
A144: 140 | B144: 黄*清 | C144: 中心村 | D144: 1.2 | E144: 101.6 | F144: 121.92
A145: 141 | B145: 罗*珍 | C145: 中心村 | D145: 7 | E145: 101.6 | F145: 711.2
A146: 142 | B146: 黄*昌 | C146: 中心村 | D146: 1 | E146: 101.6 | F146: 101.6
A147: 143 | B147: 黄*球 | C147: 中心村 | D147: 4 | E147: 101.6 | F147: 406.4
A148: 144 | B148: 莫*强 | C148: 中心村 | D148: 0.8 | E148: 101.6 | F148: 81.28
A149: 145 | B149: 陈*光 | C149: 中心村 | D149: 0.4 | E149: 101.6 | F149: 40.64
A150: 146 | B150: 莫*荣 | C150: 中心村 | D150: 2.4 | E150: 101.6 | F150: 243.84
A151: 147 | B151: 张*昌 | C151: 中心村 | D151: 1.6 | E151: 101.6 | F151: 162.56
A152: 148 | B152: 张*洪 | C152: 中心村 | D152: 2.8 | E152: 101.6 | F152: 284.48
A153: 149 | B153: 张*盈 | C153: 中心村 | D153: 1.6 | E153: 101.6 | F153: 162.56
A154: 150 | B154: 周*雄 | C154: 中心村 | D154: 1.6 | E154: 101.6 | F154: 162.56
A155: 151 | B155: 张*洪 | C155: 中心村 | D155: 3.6 | E155: 101.6 | F155: 365.76
A156: 152 | B156: 张*来 | C156: 中心村 | D156: 5.2 | E156: 101.6 | F156: 528.32
A157: 153 | B157: 张*健 | C157: 中心村 | D157: 2 | E157: 101.6 | F157: 203.2
A158: 154 | B158: 张*洪 | C158: 中心村 | D158: 1.6 | E158: 101.6 | F158: 162.56
A159: 155 | B159: 黎*伟 | C159: 中心村 | D159: 6.5 | E159: 101.6 | F159: 660.4
A160: 156 | B160: 张*明 | C160: 中心村 | D160: 0.5 | E160: 101.6 | F160: 50.8
A161: 157 | B161: 梁*强 | C161: 中心村 | D161: 2 | E161: 101.6 | F161: 203.2
A162: 158 | B162: 黎*江 | C162: 中心村 | D162: 1.5 | E162: 101.6 | F162: 152.4
A163: 159 | B163: 雷*业 | C163: 中心村 | D163: 3.1 | E163: 101.6 | F163: 314.96
A164: 160 | B164: 黎*全 | C164: 中心村 | D164: 13 | E164: 101.6 | F164: 1320.8
A165: 161 | B165: 梁*迁 | C165: 中心村 | D165: 1.4 | E165: 101.6 | F165: 142.24
A166: 162 | B166: 黄*廉 | C166: 中心村 | D166: 0.6 | E166: 101.6 | F166: 60.96
A167: 163 | B167: 李*笑 | C167: 中心村 | D167: 0.3 | E167: 101.6 | F167: 30.48
A168: 164 | B168: 梁*云 | C168: 中心村 | D168: 0.4 | E168: 101.6 | F168: 40.64
A169: 165 | B169: 张*荣 | C169: 中心村 | D169: 0.6 | E169: 101.6 | F169: 60.96
A170: 166 | B170: 黎*添 | C170: 中心村 | D170: 0.7 | E170: 101.6 | F170: 71.12
A171: 167 | B171: 周*琼 | C171: 中心村 | D171: 0.6 | E171: 101.6 | F171: 60.96
A172: 168 | B172: 张*永 | C172: 中心村 | D172: 0.7 | E172: 101.6 | F172: 71.12
A173: 169 | B173: 周*霞 | C173: 中心村 | D173: 0.2 | E173: 101.6 | F173: 20.32
A174: 170 | B174: 梁*光 | C174: 中心村 | D174: 0.5 | E174: 101.6 | F174: 50.8
A175: 171 | B175: 杜*强 | C175: 中心村 | D175: 1.3 | E175: 101.6 | F175: 132.08
A176: 172 | B176: 张*齐 | C176: 中心村 | D176: 0.7 | E176: 101.6 | F176: 71.12
A177: 173 | B177: 朱*湛 | C177: 中心村 | D177: 0.2 | E177: 101.6 | F177: 20.32
A178: 174 | B178: 黎*浩 | C178: 中心村 | D178: 0.3 | E178: 101.6 | F178: 30.48
A179: 175 | B179: 钟*松 | C179: 中心村 | D179: 0.3 | E179: 101.6 | F179: 30.48
A180: 176 | B180: 张*源 | C180: 中心村 | D180: 0.3 | E180: 101.6 | F180: 30.48
A181: 177 | B181: 周*枝 | C181: 中心村 | D181: 0.5 | E181: 101.6 | F181: 50.8
A182: 178 | B182: 雷*祺 | C182: 中心村 | D182: 0.3 | E182: 101.6 | F182: 30.48
A183: 179 | B183: 张*礼 | C183: 中心村 | D183: 0.3 | E183: 101.6 | F183: 30.48
A184: 180 | B184: 陈*卿 | C184: 中心村 | D184: 0.4 | E184: 101.6 | F184: 40.64
A185: 181 | B185: 邓*健 | C185: 中心村 | D185: 0.3 | E185: 101.6 | F185: 30.48
A186: 182 | B186: 许*莲 | C186: 中心村 | D186: 1.8 | E186: 101.6 | F186: 182.88
A187: 183 | B187: 陈*伦 | C187: 中心村 | D187: 4 | E187: 101.6 | F187: 406.4
A188: 184 | B188: 陈*才 | C188: 中心村 | D188: 2 | E188: 101.6 | F188: 203.2
A189: 185 | B189: 蔡*新 | C189: 中心村 | D189: 1 | E189: 101.6 | F189: 101.6
A190: 186 | B190: 蔡*发 | C190: 中心村 | D190: 3 | E190: 101.6 | F190: 304.8
A191: 187 | B191: 蔡*辉 | C191: 中心村 | D191: 1 | E191: 101.6 | F191: 101.6
A192: 188 | B192: 黄*光 | C192: 中心村 | D192: 1 | E192: 101.6 | F192: 101.6
A193: 189 | B193: 蔡*根 | C193: 中心村 | D193: 5 | E193: 101.6 | F193: 508
A194: 190 | B194: 姚*成 | C194: 中心村 | D194: 1 | E194: 101.6 | F194: 101.6
A195: 191 | B195: 梁*健 | C195: 中心村 | D195: 5 | E195: 101.6 | F195: 508
A196: 192 | B196: 梁*全 | C196: 中心村 | D196: 6 | E196: 101.6 | F196: 609.6
A197: 193 | B197: 蔡*开 | C197: 中心村 | D197: 1 | E197: 101.6 | F197: =D197*E197 -> 101.6
A198: 194 | B198: 姚*平 | C198: 中心村 | D198: 1 | E198: 101.6 | F198: 101.6
A199: 195 | B199: 何*芳 | C199: 中心村 | D199: 0.7 | E199: 101.6 | F199: 71.12
A200: 196 | B200: 林*彩 | C200: 中心村 | D200: 1 | E200: 101.6 | F200: 101.6
... 400 more rows
